bitfinex-derivatives/quotes_ETHF0:USTF0_20250321
["timestamp","ask_amount","ask_price","bid_price","bid_amount"]
[1742542904208,3.67814,1971.7,1971.6,2.38123]
[1742542906315,2.6633,1971.7,1971.6,2.38123]
[1742542906608,3.67814,1971.7,1971.6,2.38123]
[1742542907704,3.67817,1971.7,1971.6,1.01489]
[1742542908811,2.6633,1971.7,1971.6,1.01489]
[1742542909105,3.67814,1971.7,1971.6,2.42659]
[1742542910406,2.6633,1971.7,1971.6,2.42659]
[1742542911016,3.67814,1971.7,1971.6,2.42659]
[1742542911815,1.01489,1971.6,1971.5,4.2227]
[1742542912009,2.34649,1971.6,1971.5,5.5033]
[1742542912209,2.34649,1971.6,1971.5,3.2078]
[1742542912414,2.34649,1971.6,1971.5,44.0078]
[1742542913309,2.34649,1971.6,1971.5,45.02274]
[1742542913512,2.34649,1971.6,1971.5,45.4118]
[1742542914412,2.34649,1971.6,1971.5,44.0078]
[1742542915113,2.34649,1971.6,1971.5,45.4118]
[1742542915413,2.34649,1971.6,1971.5,44.0078]
[1742542916621,2.34649,1971.6,1971.5,40.8]
[1742542918613,8.82529,1971.6,1971.5,40.8]
[1742542919016,2.53749,1971.4,1971.0,3.2154009]
[1742542919218,1.01514,1971.1,1971.0,3.2154009]
[1742542920009,1.01514,1971.1,1971.0,44.0154009]
[1742542920512,1.3571,1971.2,1971.1,1.01514]
[1742542920709,2.37219,1971.2,1971.1,1.01514]
[1742542921012,2.37219,1971.2,1971.1,1.2875]
[1742542923115,2.37219,1971.2,1971.1,42.0875]
[1742542924417,2.37219,1971.2,1971.1,43.10264]
[1742542925817,1.3571,1971.2,1971.1,43.10264]
[1742542926021,0.6615,1971.3,1971.2,1.01509]
[1742542926208,0.6615,1971.3,1971.2,3.02079]
[1742542926414,0.6615,1971.3,1971.2,6.22859]
[1742542926814,1.2763,1971.4,1971.3,1.01504]
[1742542927017,2.29133,1971.4,1971.3,1.3526]
[1742542928213,2.29133,1971.4,1971.3,2.36764]
[1742542928408,2.29133,1971.4,1971.3,1.3526]
[1742542928816,2.29133,1971.4,1971.3,2.36764]
[1742542929223,2.29133,1971.4,1971.3,1.3526]
[1742542929422,0.6486,1971.5,1971.4,1.01499]
[1742542929616,3.05944,1971.5,1971.3,2.3676]
[1742542929811,3.05944,1971.5,1971.4,1.01499]
[1742542930020,3.05944,1971.5,1971.4,2.35799]
[1742542930422,3.05944,1971.5,1971.4,1.343]
[1742542930722,3.74284,1971.5,1971.4,1.343]
[1742542931222,1.01504,1971.3,1971.2,44.0078]
[1742542931425,1.01504,1971.3,1971.2,42.173]
[1742542932528,1.01504,1971.3,1971.2,40.8]
[1742542933134,2.37634,1971.3,1971.2,40.8]
[1742542940336,1.01514,1971.1,1971.0,1.3425009]
[1742542940833,1.01514,1971.1,1971.0,42.1425009]
[1742542941036,2.39054,1971.1,1971.0,42.1425009]
[1742542941829,1.01514,1971.1,1971.0,43.1577009]
[1742542942031,1.01514,1971.1,1971.0,43.8326009]
[1742542942238,1.01514,1971.1,1971.0,44.4324009]
[1742542944626,0.6613,1971.4,1971.0,43.4172009]
[1742542944831,0.6613,1971.4,1971.2,4.22284]
[1742542944832,1.01504,1971.3,1971.2,4.22284]
[1742542945933,2.0437,1971.4,1971.2,4.22284]
[1742542946140,3.272,1971.5,1971.2,3.2078]
[1742542946332,2.32867,1971.5,1971.4,1.01499]
[1742542946534,2.32868,1971.5,1971.4,1.01499]
[1742542947037,1.3137,1971.5,1971.4,4.22279]
[1742542947339,1.01489,1971.6,1971.5,1.01494]
[1742542947732,2.32858,1971.7,1971.6,1.01489]
[1742542948136,2.32854,1971.7,1971.6,1.01489]
[1742542948829,3.2078,1971.8,1971.4,5.74527]
[1742542948830,1.01482,1971.8,1971.7,1.01484]
[1742542949129,2.30902,1971.8,1971.7,1.01484]
[1742542949532,1.2942,1971.8,1971.7,1.01484]
[1742542949739,2.30898,1971.8,1971.7,1.01484]
[1742542949940,1.2942,1971.8,1971.7,1.01484]
[1742542950127,2.30898,1971.8,1971.7,1.01484]
[1742542950531,1.2942,1971.8,1971.7,1.01484]
[1742542951632,2.30898,1971.8,1971.7,1.01484]
[1742542952736,1.01484,1971.7,1971.6,1.01484]
[1742542952930,3.05994,1971.7,1971.6,1.01484]
[1742542953134,2.0451,1971.7,1971.4,3.2078]
[1742542953330,1.01505,1971.3,1971.2,4.22288]
[1742542953527,1.01505,1971.3,1971.2,1.01508]
[1742542953728,1.01505,1971.3,1971.2,4.22288]
[1742542954336,2.40592,1971.4,1971.3,1.01504]
[1742542954535,1.01504,1971.3,1971.2,4.22285]
[1742542954735,1.401,1971.3,1971.2,4.22285]
[1742542955436,2.41604,1971.3,1971.2,4.22285]
[1742542955641,1.401,1971.3,1971.2,4.22285]
[1742542956037,2.41604,1971.3,1971.2,4.22285]
[1742542956237,2.41604,1971.3,1971.2,1.01505]
[1742542956444,1.401,1971.3,1971.2,1.01505]
[1742542956939,1.401,1971.3,1971.0,44.0154009]
[1742542956940,1.0151,1971.2,1971.1,1.01511]
[1742542957832,1.0151,1971.2,1971.1,2.39221]
[1742542958343,1.401,1971.3,1971.2,1.01509]
[1742542958541,1.401,1971.3,1971.2,2.39219]
[1742542960228,2.41604,1971.3,1971.2,2.39219]
[1742542960644,2.41604,1971.3,1971.2,1.3771]
[1742542962535,5.68704,1971.3,1971.2,1.3771]
[1742542962736,4.672,1971.3,1971.0,45.7293509]
[1742542963042,1.3831,1971.2,1971.1,2.32424]
[1742542963238,2.39811,1971.4,1971.3,1.01504]
[1742542963548,2.39811,1971.4,1971.2,4.22285]
[1742542963737,1.3831,1971.3,1971.2,4.22285]
[1742542964137,2.39814,1971.3,1971.2,4.22285]
[1742542966045,1.3831,1971.3,1971.2,4.22285]
[1742542967947,2.39814,1971.3,1971.2,4.22285]
[1742542970641,1.3831,1971.3,1971.2,4.22285]
[1742542971541,4.28595,1971.5,1971.4,1.01499]
[1742542972946,5.59645,1971.5,1971.4,1.01499]
[1742542973343,1.3105,1971.5,1971.4,1.01499]
[1742542973549,1.3105,1971.5,1971.4,4.22279]
[1742542976448,4.28579,1971.8,1971.6,1.01489]
[1742542976449,1.2783,1971.7,1971.6,1.01489]
[1742542977252,1.2783,1971.7,1971.6,4.22269]
[1742542980054,1.2783,1971.7,1971.6,4.87429]
[1742542980452,0.6481,1971.8,1971.7,1.01484]
[1742542980653,2.0306,1971.8,1971.7,2.38234]
[1742542985560,2.0306,1971.8,1971.7,5.59014]
[1742542987153,2.0306,1971.8,1971.7,4.22264]
[1742542987354,2.0306,1971.8,1971.0,45.8835509]
[1742542987355,10.27538,1971.8,1971.3,3.2078]
[1742542987559,1.01499,1971.4,1971.3,4.22282]
[1742542988062,1.01499,1971.4,1971.3,3.2078]
[1742542988258,3.01889,1971.4,1971.3,3.2078]
[1742542988469,3.01889,1971.4,1971.2,1.3427]
[1742542988654,1.3229,1971.3,1971.2,2.35779]
[1742542989051,2.33794,1971.3,1971.2,2.35779]
[1742542989356,2.33794,1971.3,1971.2,1.01509]
[1742542989862,2.33794,1971.3,1971.1,4.5282]
[1742542990166,1.3229,1971.2,1971.1,5.54334]
[1742542990553,1.984,1971.2,1971.1,2.33554]
[1742542990754,2.99909,1971.2,1971.1,2.33554]
[1742542990952,2.99909,1971.2,1971.1,43.13554]
[1742542991467,1.984,1971.2,1971.1,43.13554]
[1742542991851,2.99909,1971.2,1971.1,43.13554]
[1742542993256,2.99909,1971.2,1971.1,46.34334]
[1742542993461,2.99909,1971.2,1971.1,43.13554]
[1742542994458,2.99909,1971.2,1971.1,46.34334]
[1742542994967,2.99909,1971.2,1971.1,43.13554]
[1742542996669,1.984,1971.2,1971.1,43.13554]
[1742542997966,2.99909,1971.2,1971.1,42.1204]
[1742542998169,2.99909,1971.2,1971.1,40.8]
[1742542999670,2.99909,1971.2,1971.1,41.81514]
[1742542999871,2.99909,1971.2,1971.1,43.12214]
[1742543000172,2.99909,1971.2,1971.1,42.107]
[1742543002273,2.99909,1971.2,1971.1,43.12214]
[1742543002474,2.99909,1971.2,1971.1,40.8]
[1742543002972,2.99909,1971.2,1971.1,41.81514]
[1742543003172,2.99909,1971.2,1971.1,43.21084]
[1742543003373,1.984,1971.2,1971.1,43.21084]
[1742543003569,1.984,1971.2,1971.1,46.41864]
[1742543003767,1.3229,1971.2,1971.1,47.09344]
[1742543006177,1.69601,1971.4,1971.3,1.01504]
[1742543006477,1.01504,1971.3,1971.2,1.3074]
[1742543006676,2.29374,1971.3,1971.2,1.3074]
[1742543006876,2.29374,1971.3,1971.2,43.12249]
[1742543008779,1.2787,1971.3,1971.2,43.12249]
[1742543008980,2.29374,1971.3,1971.2,43.12249]
[1742543009677,1.2787,1971.3,1971.2,43.12249]
[1742543010283,1.2787,1971.3,1971.2,43.79759]
[1742543010880,6.4778,1971.6,1971.5,1.01494]
[1742543011284,7.49269,1971.6,1971.4,1.01497]
[1742543011475,1.01489,1971.6,1971.5,1.01494]
[1742543011780,1.01492,1971.6,1971.5,1.01494]
[1742543012278,2.32052,1971.6,1971.5,1.01494]
[1742543012477,1.3056,1971.6,1971.5,1.01494]
[1742543013185,0.6941,1971.8,1971.7,1.01484]
[1742543013381,4.28475,1971.9,1971.8,1.01478]
[1742543013581,0.6851,1972.0,1971.9,1.01473]
[1742543013783,0.6851,1972.0,1971.9,2.38753]
[1742543013981,1.69978,1972.0,1971.9,2.38753]
[1742543014177,1.69978,1972.0,1971.9,1.3728]
[1742543014776,1.69978,1972.0,1971.9,2.38753]
[1742543017485,1.69978,1972.0,1971.9,1.3728]
[1742543019292,1.69978,1972.0,1971.9,2.38753]
[1742543022790,1.69978,1972.0,1971.9,1.3728]
[1742543023795,1.69978,1972.0,1971.9,2.38753]
[1742543024889,0.6851,1972.0,1971.9,2.38753]
[1742543025795,1.69978,1972.0,1971.9,2.38753]
[1742543027999,3.05228,1972.0,1971.9,2.38753]
[1742543028599,3.05228,1972.0,1971.9,1.3728]
[1742543030201,3.05228,1972.0,1971.9,2.38753]
[1742543032202,2.36718,1972.0,1971.9,2.38753]
[1742543033004,1.3525,1972.0,1971.9,2.38753]
[1742543033205,2.36718,1972.0,1971.9,2.38753]
[1742543033397,2.36718,1972.0,1971.9,1.3728]
[1742543033705,2.36718,1972.0,1971.9,2.38753]
[1742543034703,1.3525,1972.0,1971.9,2.38753]
[1742543035407,2.36718,1972.0,1971.9,2.38753]
[1742543035901,1.3525,1972.0,1971.9,3.06383]
[1742543037203,2.36718,1972.0,1971.9,3.06383]
[1742543038608,1.3525,1972.0,1971.9,3.06383]
[1742543039300,2.36718,1972.0,1971.9,3.06383]
[1742543040504,2.36718,1972.0,1971.9,1.3728]
[1742543040806,2.36718,1972.0,1971.9,2.38753]
[1742543042204,1.01473,1971.9,1971.8,40.8]
[1742543042406,1.01473,1971.9,1971.3,1.01503]
[1742543042407,1.01503,1971.4,1971.3,1.01503]
[1742543042911,1.01508,1971.3,1971.1,4.22294]
[1742543043205,0.6966,1971.2,1971.1,5.55204]
[1742543043398,3.08959,1971.2,1971.1,41.81514]
[1742543043708,2.0745,1971.2,1971.1,40.8]
[1742543043900,3.08959,1971.2,1971.1,40.8]
[1742543044711,3.08959,1971.2,1971.1,41.81514]
[1742543045601,3.08959,1971.2,1971.1,40.8]
[1742543046202,6.29739,1971.2,1971.1,40.8]
[1742543047307,8.79739,1971.2,1971.1,40.8]
[1742543048203,1.01514,1971.1,1971.0,0.0076009]
[1742543048403,5.68984,1971.1,1971.0,0.0076009]
[1742543048702,5.68984,1971.1,1971.0,40.8076009]
[1742543049299,8.18984,1971.1,1971.0,40.8076009]
[1742543050510,8.59512296,1971.1,1971.0,0.0076009]
[1742543050911,6.09512296,1971.1,1971.0,0.0076009]
[1742543051211,7.57998296,1971.1,1970.3,1.69935]
[1742543051415,1.0155,1970.4,1970.3,0.6838]
[1742543051912,1.01556,1970.3,1970.2,41.81557]
[1742543052107,2.41656,1970.3,1970.2,41.81557]
[1742543052412,2.41656,1970.3,1970.2,40.8]
[1742543052913,1.401,1970.3,1970.2,41.81561]
[1742543054709,1.401,1970.3,1970.2,45.02341]
[1742543054915,1.0231209,1970.4,1970.2,41.81561]
[1742543055114,2.3531209,1970.4,1970.2,41.81561]
[1742543055319,2.3531209,1970.4,1970.2,41.81558]
[1742543055619,1.01556,1970.3,1970.2,40.8]
[1742543055915,2.40406,1970.3,1970.2,40.8]
[1742543056217,1.3885,1970.3,1970.2,40.8]
[1742543057213,1.3885,1970.3,1970.2,41.81561]
[1742543057520,2.40406,1970.3,1970.2,40.8]
[1742543057816,2.40406,1970.3,1970.2,41.81561]
[1742543058016,2.40406,1970.3,1970.2,43.18291]
[1742543059217,1.3885,1970.3,1970.2,43.18291]
[1742543059718,2.40406,1970.3,1970.2,42.1673]
[1742543061018,2.40406,1970.3,1970.2,43.18291]
[1742543061320,1.3885,1970.3,1970.2,43.18291]
[1742543061516,1.3885,1970.3,1970.2,42.1673]
[1742543061818,2.40406,1970.3,1970.2,42.1673]
[1742543062215,2.40406,1970.3,1970.2,40.8]
[1742543062416,1.01561,1970.2,1970.1,0.0076009]
[1742543062618,6.90681,1970.2,1970.1,0.0076009]
[1742543062819,6.90681,1970.2,1970.1,42.2115009]
[1742543064515,6.90681,1970.2,1970.1,43.2271609]
[1742543064716,6.26001,1970.2,1970.1,43.2271609]
[1742543065116,6.26001,1970.2,1970.1,42.2115009]
[1742543066425,6.26001,1970.2,1970.1,43.2271609]
[1742543066618,6.26001,1970.2,1970.1,42.2115009]
[1742543070323,6.26001,1970.2,1970.1,43.2271609]
[1742543070527,5.61751,1970.2,1970.1,43.2271609]
[1742543070727,4.28659,1970.3,1970.2,1.01559]
[1742543071027,1.3163009,1970.4,1970.3,1.01556]
[1742543071216,0.0076009,1970.4,1970.3,1.01556]
[1742543071417,0.0076009,1970.4,1970.3,2.39586]
[1742543071623,0.0076009,1970.4,1970.3,5.60366]
[1742543071825,0.0076009,1970.4,1970.3,8.87466]
[1742543072022,7.49412,1970.8,1970.7,1.01535]
[1742543072823,6.4788,1970.8,1970.7,1.01535]
[1742543073218,6.4788,1970.8,1970.7,2.39565]
[1742543073828,3.2078,1970.8,1970.7,2.39565]
[1742543075425,3.2078,1970.8,1970.7,3.06655]
[1742543075815,1.3087,1970.9,1970.8,1.0153]
[1742543076017,1.3087,1970.9,1970.8,2.2915]
[1742543076224,2.32395,1970.9,1970.8,2.2915]
[1742543076729,4.94313,1971.0,1970.8,2.2915]
[1742543077026,6.33093,1971.0,1970.9,1.3545]
[1742543078028,6.33093,1971.0,1970.9,2.36975]
[1742543078728,3.06093,1971.0,1970.9,2.36975]
[1742543079729,3.0609,1971.0,1970.9,2.36975]
[1742543081025,3.0609,1971.0,1970.9,1.3545]
[1742543081228,2.0457,1971.0,1970.9,2.36975]
[1742543081422,3.2078,1971.1,1971.0,1.0152]
[1742543081619,3.2078,1971.1,1971.0,2.3845]
[1742543082222,4.5021,1971.1,1971.0,2.3845]
[1742543083333,4.5021,1971.1,1970.1,0.0076009]
[1742543083334,10.75224631,1971.1,1970.1,0.0076009]
[1742543083626,3.2078,1970.3,1969.4,3.2078]
[1742543083833,3.2078,1970.1,1969.6,3.2078]
[1742543084031,4.7997,1970.0,1969.4,3.2078]
[1742543084228,4.7997,1970.0,1969.5,1.2769]
[1742543084431,4.7997,1970.0,1969.6,4.2237]
[1742543084632,4.7997,1970.0,1969.7,1.2769]
[1742543084835,0.0076009,1969.9,1969.7,2.29273]
[1742543085133,0.0076009,1969.9,1969.7,2.6428]
[1742543085534,0.0076009,1969.9,1969.7,3.65863]
[1742543085727,0.0076009,1969.9,1969.8,3.2078]
[1742543086232,0.0076009,1969.9,1969.7,2.6428]
[1742543086628,1.3360009,1969.9,1969.7,2.6428]
[1742543086827,1.3360009,1969.9,1969.8,3.2078]
[1742543087038,0.0076009,1969.9,1969.8,3.2078]
[1742543088531,1.01581,1969.8,1969.7,1.9735]
[1742543089038,2.4174909,1969.9,1969.7,42.7735]
[1742543089925,1.01581,1969.8,1969.7,42.7735]
[1742543090333,1.4017009,1969.9,1969.7,42.7735]
[1742543090334,2.4175009,1969.9,1969.7,42.7735]
[1742543091038,1.0234009,1969.9,1969.7,42.7735]
[1742543092027,1.01581,1969.8,1969.7,42.7735]
[1742543092230,0.0076009,1969.9,1969.7,43.78935]
[1742543092429,0.0076009,1969.9,1969.8,4.22361]
[1742543093141,0.0076009,1969.9,1969.8,45.02361]
[1742543093332,1.01549,1970.5,1969.8,46.5078]
[1742543093534,1.3695,1970.5,1970.3,3.2078]
[1742543093841,1.3695,1970.5,1970.4,1.348]
[1742543094030,2.35229,1970.7,1970.4,1.348]
[1742543094232,1.3695,1970.6,1970.4,1.348]
[1742543094427,3.2078,1971.1,1970.6,1.01538]
[1742543094428,3.532,1971.0,1970.6,1.01538]
[1742543094638,1.01528,1970.9,1970.7,1.348]
[1742543094946,1.3729,1970.8,1970.7,1.348]
[1742543097439,24.93814449,1971.6,1971.3,1.01504]
[1742543097634,21.73034449,1971.6,1971.5,1.01494]
[1742543097835,21.73034449,1971.6,1971.5,4.54294]
[1742543098335,21.73034449,1971.6,1971.5,5.91124]
[1742543098543,21.73034449,1971.6,1971.5,46.71124]
[1742543098945,16.29594539,1971.6,1971.5,49.21124]
[1742543100343,78.85820638,1972.5,1971.8,2.53686]
[1742543100344,67.31478542,1972.5,1971.8,2.53686]
[1742543100543,4.6229,1972.7,1972.6,1.01437]
[1742543100942,1.4151,1972.7,1972.6,1.01437]
[1742543101642,1.4151,1972.7,1972.6,41.81437]
[1742543101847,1.4151,1972.7,1972.6,40.8]
[1742543102043,1.4151,1972.7,1972.6,41.81437]
[1742543102948,1.4151,1972.7,1972.6,40.8]
[1742543103552,1.4151,1972.7,1972.6,41.81437]
[1742543103948,1.4151,1972.7,1972.6,1.01437]
[1742543104951,4.22189,1973.2,1972.9,1.0142]
[1742543105247,1.3766,1973.0,1972.9,1.0142]
[1742543105547,1.3766,1973.0,1972.9,2.369]
[1742543106052,2.39079,1973.0,1972.8,4.52227]
[1742543106447,1.3766,1973.0,1972.9,1.01422]
[1742543107946,1.3766,1973.0,1972.9,2.40712]
[1742543108144,1.3766,1973.0,1972.9,5.90612]
[1742543108356,0.6486,1973.4,1973.3,1.01401]
[1742543108549,1.2906,1973.6,1973.5,1.01391]
[1742543109453,1.2906,1973.6,1973.5,2.40681]
[1742543110258,2.30446,1973.6,1973.5,1.3929]
[1742543110447,2.30448,1973.6,1973.4,7.71875]
[1742543110652,2.30448,1973.6,1973.4,4.22175]
[1742543110954,2.30448,1973.6,1973.4,7.71375]
[1742543111954,1.2906,1973.6,1973.5,1.01391]
[1742543112181,1.2906,1973.6,1973.5,2.41011]
[1742543117055,4.4878,1974.0,1973.5,1.3962]
[1742543117257,1.0136,1974.1,1973.8,3.2078]
[1742543117460,1.3398,1974.0,1973.9,2.36846]
[1742543117756,8.12992957,1974.0,1973.2,3.2078]
[1742543118060,2.35353,1973.9,1973.6,1.01386]
[1742543118253,1.3398,1973.8,1973.7,3.2078]
[1742543118563,1.3398,1973.8,1973.5,2.36871]
[1742543118859,2.35357,1973.8,1973.5,1.3548]
[1742543119066,1.01381,1973.7,1973.5,1.3624009]
[1742543119363,2.32636,1973.6,1973.5,0.0076009]
[1742543121363,1.3125,1973.6,1973.5,3.2154009]
[1742543121860,2.32636,1973.6,1973.5,3.2154009]
[1742543122358,2.32636,1973.6,1973.5,44.0154009]
[1742543123361,2.32636,1973.6,1973.5,45.3309009]
[1742543124663,2.32636,1973.6,1972.7,3.2078]
[1742543124664,3.8125,1973.6,1972.7,3.2078]
[1742543124857,3.2078,1973.5,1972.9,5.74335]
[1742543125063,4.6128,1973.5,1973.3,1.01398]
[1742543125264,4.6128,1973.5,1973.4,1.2767]
[1742543125467,5.62671,1973.5,1973.4,1.2767]
[1742543125964,1.405,1973.5,1973.4,2.29066]
[1742543126268,1.405,1973.5,1973.4,43.09066]
[1742543126457,1.01385,1973.7,1973.4,43.09062]
[1742543126658,1.01386,1973.6,1973.4,42.0767]
[1742543126854,1.405,1973.5,1973.4,42.0767]
[1742543127266,1.405,1973.5,1973.4,43.09066]
[1742543127565,1.405,1973.5,1973.4,42.0767]
[1742543128672,1.405,1973.5,1973.4,43.09066]
[1742543129070,3.2078,1973.7,1973.5,1.01386]
[1742543129373,5.60661,1973.7,1973.6,1.3315]
[1742543129666,4.5928,1973.7,1973.6,1.3315]
[1742543129869,5.60661,1973.7,1973.6,1.3315]
[1742543130066,4.5928,1973.7,1973.6,42.1315]
[1742543131273,1.385,1973.7,1973.6,43.14536]
[1742543132271,0.0076009,1973.8,1973.7,1.01381]
[1742543132567,0.0076009,1973.8,1973.7,5.83891]
[1742543132864,1.2866,1974.0,1973.9,1.0137]
[1742543133267,1.2866,1974.0,1973.7,3.495]
[1742543133573,1.2866,1974.0,1973.9,1.0137]
[1742543134869,0.0076009,1974.1,1974.0,1.01365]
[1742543135067,3.2078,1974.3,1974.2,1.01355]
[1742543135269,3.2078,1974.3,1974.2,4.50155]
[1742543135774,4.533,1974.5,1974.4,1.01345]
[1742543136170,4.533,1974.5,1974.4,4.49845]
[1742543136476,3.2078,1974.7,1974.6,1.01334]
[1742543136867,3.2078,1974.7,1974.6,45.29734]
[1742543137365,4.533,1974.9,1974.8,1.01324]
[1742543137568,4.533,1974.9,1974.8,4.49524]
[1742543138171,1.3252,1974.9,1974.8,4.49524]
[1742543138466,3.2078,1975.3,1975.2,1.01299]
[1742543139773,4.5595,1975.3,1975.2,1.01299]
[1742543140476,4.5595,1975.3,1975.2,4.48799]
[1742543140679,10.5605,1975.3,1974.6,0.6499]
[1742543140869,3.2078,1975.0,1974.6,0.6499]
[1742543141070,3.2078,1975.0,1974.9,1.01319]
[1742543141577,4.5305,1975.4,1975.2,1.01301]
[1742543141767,4.5305,1975.4,1975.1,3.499]
[1742543142078,1.01299,1975.3,1975.1,4.51207]
[1742543142274,5.54347,1975.4,1975.1,4.51207]
[1742543142570,1.0131,1975.1,1974.9,1.01316]
[1742543142778,1.0131,1975.1,1974.9,4.50918]
[1742543142974,3.2078,1975.0,1974.9,4.50918]
[1742543143380,3.2078,1975.2,1975.0,1.0131]
[1742543143569,3.2078,1975.2,1975.1,1.01309]
[1742543143770,3.2078,1975.2,1975.0,1.01309]
[1742543143968,4.22084,1975.2,1975.0,1.01309]
[1742543144178,4.22084,1975.2,1974.7,3.492]
[1742543144179,3.2078,1975.2,1974.7,3.492]
[1742543144480,4.22084,1975.2,1975.0,1.01309]
[1742543145078,1.01309,1975.1,1974.9,1.01315]
[1742543145382,3.2078,1975.0,1974.9,1.01315]
[1742543145880,4.22088,1975.2,1974.9,1.01315]
[1742543146288,4.22088,1975.2,1975.0,1.01313]
[1742543146782,4.22088,1975.2,1974.9,1.01315]
[1742543146972,3.2078,1975.2,1975.0,1.01313]
[1742543147178,4.22085,1975.2,1975.0,1.01313]
[1742543147588,1.01311,1975.1,1974.8,3.488]
[1742543147789,3.2078,1975.0,1974.9,1.01317]
[1742543148089,3.2078,1975.0,1974.9,2.37187]
[1742543148295,3.2078,1975.0,1974.9,2.37189]
[1742543148494,3.2078,1975.0,1974.9,1.3587]
[1742543148799,3.2078,1975.0,1974.9,2.37189]
[1742543153794,3.2078,1975.0,1974.5,88.3394009]
[1742543153998,3.2078,1975.0,1974.6,4.8261]
[1742543153999,1.3469,1974.9,1974.6,4.8261]
[1742543154200,1.3469,1974.9,1974.7,1.3571]
[1742543154493,3.2078,1975.0,1974.9,1.01319]
[1742543157299,3.2078,1975.0,1974.9,2.41489]
[1742543157797,3.2078,1975.2,1975.1,1.01305]
[1742543157997,1.3135,1975.4,1975.3,1.01299]
[1742543158297,1.3135,1975.4,1975.3,4.47399]
[1742543158494,1.3135,1975.4,1975.2,1.4017]
[1742543158693,1.3135,1975.4,1974.5,2.5410109]
[1742543158694,4.5213,1975.4,1974.5,2.5410109]
[1742543158896,3.2078,1975.2,1974.7,5.74104]
[1742543159200,1.3275,1975.3,1975.2,1.01304]
[1742543159402,1.3275,1975.3,1975.2,4.54104]
[1742543159790,1.3723,1975.5,1975.4,1.01293]
[1742543160002,2.6998,1975.5,1975.4,1.01293]
[1742543160502,2.6998,1975.5,1975.2,44.328]
[1742543160698,1.3723,1975.5,1975.4,2.29863]
[1742543160898,1.3723,1975.5,1975.4,1.2857]
[1742543161098,1.3723,1975.5,1975.3,2.29867]
[1742543162305,1.3723,1975.5,1975.3,1.2857]
[1742543162495,2.38519,1975.5,1975.3,1.2857]
[1742543162699,1.3723,1975.5,1975.3,1.2857]
[1742543163503,1.3723,1975.5,1975.3,2.29868]
[1742543163708,1.3723,1975.5,1975.3,2.29866]
[1742543164007,1.3723,1975.5,1975.4,1.3118]
[1742543165202,2.38518,1975.5,1975.4,1.3118]
[1742543165399,1.3723,1975.5,1975.4,1.3118]
[1742543165704,2.38518,1975.5,1975.4,1.3118]
[1742543165910,1.3723,1975.5,1975.4,1.3118]
[1742543166410,3.2078,1975.6,1975.5,1.01288]
[1742543166597,4.22055,1975.8,1975.5,4.52588]
[1742543166796,4.22055,1975.8,1975.6,1.3275]
[1742543167009,4.91345,1975.8,1975.6,1.3275]
[1742543167204,3.9007,1975.8,1975.6,2.34032]
[1742543167404,4.91343,1975.8,1975.6,1.3275]
[1742543167700,4.91343,1975.8,1975.5,0.0076009]
[1742543167701,1.01278,1975.7,1975.5,0.0076009]
[1742543167906,4.91346,1975.8,1975.5,5.8997709]
[1742543168111,4.91346,1975.8,1975.6,1.3693]
[1742543169214,1.01278,1975.7,1975.6,1.3693]
[1742543169405,4.91346,1975.8,1975.6,1.3693]
[1742543169605,4.91346,1975.8,1975.5,1.0204809]
[1742543169807,1.0128,1975.7,1975.5,1.3769009]
[1742543170101,3.9007,1975.8,1975.5,3.5116009]
[1742543170102,1.01283,1975.6,1975.5,3.5116009]
[1742543170306,1.01283,1975.6,1975.5,0.0076009]
[1742543170610,4.22063,1975.6,1975.5,0.0076009]
[1742543170913,3.2078,1975.6,1975.5,0.0076009]
[1742543171606,0.6929,1975.8,1975.6,1.01281]
[1742543171815,0.6929,1975.8,1975.7,1.288]
[1742543173013,1.70563,1975.8,1975.7,1.288]
[1742543173214,0.6929,1975.8,1975.7,1.288]
[1742543173712,4.91343,1975.8,1975.7,1.288]
[1742543173916,3.9007,1975.8,1975.7,1.288]
[1742543174810,4.91343,1975.8,1975.7,1.288]
[1742543175012,4.91343,1975.8,1975.6,1.01281]
[1742543175013,1.01278,1975.7,1975.6,3.489]
[1742543175316,1.01278,1975.7,1975.5,0.0076009]
[1742543175516,1.01278,1975.7,1975.5,3.4956009]
[1742543175814,1.01283,1975.6,1975.5,1.3079009]
[1742543176013,1.01282,1975.7,1975.5,4.7949009]
[1742543176210,1.01282,1975.7,1975.5,5.8077709]
[1742543176414,1.01282,1975.7,1975.5,1.3079009]
[1742543176614,1.01282,1975.7,1975.5,4.7929009]
[1742543176814,1.01282,1975.7,1975.5,1.3079009]
[1742543177403,3.9007,1975.8,1975.5,2.3207809]
[1742543177815,1.0128,1975.7,1975.5,2.3207809]
[1742543178113,2.3601,1975.7,1975.5,2.3207809]
[1742543178614,1.3473,1975.6,1975.5,1.3079009]
[1742543178813,1.3473,1975.6,1975.5,2.3207809]
[1742543179011,2.36013,1975.6,1975.5,1.3079009]
[1742543179215,1.3473,1975.6,1975.5,2.3207809]
[1742543179416,1.3473,1975.6,1975.5,1.3079009]
[1742543179811,2.36013,1975.6,1975.5,1.3079009]
[1742543180016,1.3473,1975.6,1975.5,1.3079009]
[1742543180712,1.3473,1975.6,1975.5,2.3207809]
[1742543181319,1.3473,1975.6,1975.5,1.3079009]
[1742543181717,1.3473,1975.6,1975.5,2.3207809]
[1742543182020,2.36013,1975.6,1975.5,1.3079009]
[1742543182518,5.56793,1975.6,1975.5,0.0076009]
[1742543190924,9.01593,1975.6,1975.5,0.0076009]